bitfinex-derivatives/quotes_SOLF0:USTF0_20260126
["timestamp","ask_amount","ask_price","bid_price","bid_amount"]
[1769435208456,8.05498501,123.0,122.94,10.69603607]
[1769435209957,7.3246,122.99,122.94,10.69603607]
[1769435210153,7.3246,122.99,122.94,3.36853607]
[1769435210357,8.0538494,122.99,122.94,3.36853607]
[1769435211757,9.7851905,122.99,122.94,3.36853607]
[1769435214065,8.0538494,122.99,122.94,3.36853607]
[1769435215156,7.3246,122.99,122.94,3.36853607]
[1769435215354,7.3246,122.99,122.95,3.36853607]
[1769435218272,8.0533494,123.0,122.95,3.36853607]
[1769435219372,0.7292494,123.0,122.95,10.69543607]
[1769435221776,2.4605905,123.0,122.95,10.69543607]
[1769435223668,0.7292494,123.0,122.95,10.69543607]
[1769435223871,218.88,123.03,122.93,3.36853607]
[1769435223872,0.7292494,122.99,122.93,3.36853607]
[1769435224072,2.4605905,122.99,122.93,3.36853607]
[1769435224575,0.7292494,122.99,122.94,3.36853607]
[1769435225472,9.0548411,123.01,122.95,7.3269]
[1769435225772,9.7833905,123.03,122.96,3.36853607]
[1769435226075,8.0520494,123.03,122.97,3.36853607]
[1769435226277,9.7833905,123.03,122.97,3.36853607]
[1769435226866,9.7833905,123.03,122.97,10.69423607]
[1769435227670,9.78112071,123.03,122.97,10.69423607]
[1769435228177,9.78112071,123.03,122.93,113.9899]
[1769435228178,0.7292494,123.03,122.95,3.36853607]
[1769435228377,0.7292494,123.03,122.96,1.72907131]
[1769435228576,0.7292494,123.03,122.97,3.36853607]
[1769435228885,9.78052071,123.03,122.97,10.69423607]
[1769435229177,9.78052071,123.03,122.97,3.36853607]
[1769435231978,0.7292494,123.02,122.97,3.36853607]
[1769435232180,2.45832071,123.02,122.97,3.36853607]
[1769435232780,0.7292494,123.01,122.96,7.3263]
[1769435233077,2.45832071,123.0,122.95,3.36853607]
[1769435233879,0.7292494,123.0,122.95,3.36853607]
[1769435234976,0.7292494,123.0,122.95,10.69533607]
[1769435236076,0.7292494,123.0,122.95,3.36853607]
[1769435236682,2.45832071,122.98,122.93,3.36853607]
[1769435237674,7.3259,122.97,122.93,3.36853607]
[1769435237876,0.73175851,122.95,122.89,3.36853607]
[1769435238089,2.46082982,122.95,122.89,3.36853607]
[1769435239582,0.73175851,122.95,122.89,3.36853607]
[1769435239781,1.72907131,122.96,122.89,3.36853607]
[1769435239782,9.78623605,122.97,122.91,3.314636]
[1769435239977,8.05716474,122.97,122.91,3.314636]
[1769435240488,9.78623605,122.97,122.91,3.314636]
[1769435241884,2.45993605,122.96,122.91,3.314636]
[1769435242094,1.72907131,122.95,122.91,3.314636]
[1769435242593,2.45993605,122.96,122.91,3.314636]
[1769435242891,7.327,122.95,122.91,3.314636]
[1769435244390,9.78633605,122.96,122.91,3.314636]
[1769435244585,1.72907131,122.95,122.91,3.314636]
[1769435245291,9.78633605,122.96,122.91,3.314636]
[1769435246697,0.73086474,122.96,122.91,3.314636]
[1769435247898,0.73086474,122.96,122.91,10.643936]
[1769435250004,327.09993605,122.98,122.92,10.643136]
[1769435250491,327.09993605,122.98,122.93,3.314636]
[1769435251705,334.42523605,122.98,122.93,3.314636]
[1769435255602,9.78453605,123.0,122.94,3.314636]
[1769435256996,9.78453605,123.0,122.94,10.642136]
[1769435259809,8.05546474,123.0,122.94,10.642136]
[1769435262611,9.78453605,123.0,122.94,10.642136]
[1769435264913,0.73086474,122.99,122.94,10.642136]
[1769435267014,9.78473605,122.99,122.94,3.314636]
[1769435267409,1.72907131,123.02,122.94,5.04370731]
[1769435267615,0.73086474,123.01,122.95,3.314636]
[1769435268912,8.05476474,123.01,122.95,10.641136]
[1769435271710,9.05187131,123.02,122.97,3.43868187]
[1769435271911,539.2503754,123.03,122.97,3.43868187]
[1769435272118,325.45385018,123.03,122.97,3.43868187]
[1769435272920,325.45385018,123.03,122.98,10.76378187]
[1769435273511,324.72,123.03,122.99,3.43868187]
[1769435273920,324.72,123.03,122.99,10.76328187]
[1769435274217,9.78392149,123.05,123.0,3.43868187]
[1769435277010,2.46292149,123.06,123.0,3.43868187]
[1769435277209,1.72907131,123.05,123.0,3.43868187]
[1769435277617,2.46292149,123.06,123.0,3.43868187]
[1769435277818,0.73385018,123.06,123.01,3.43868187]
[1769435278419,0.73385018,123.06,123.01,10.76198187]
[1769435279724,2.46292149,123.06,123.01,10.76198187]
[1769435280127,2.46292149,123.06,123.01,3.43868187]
[1769435280429,9.78332149,123.06,123.01,3.43868187]
[1769435281425,1.72907131,123.04,122.99,10.76268187]
[1769435282726,9.78402149,123.05,122.99,10.76268187]
[1769435283125,9.04947131,123.06,123.01,3.43868187]
[1769435283727,2.46292149,123.07,123.02,3.43868187]
[1769435285022,9.78282149,123.07,123.02,3.43868187]
[1769435287324,9.78282149,123.07,123.01,7.3233]
[1769435287524,0.73385018,123.06,123.01,7.3233]
[1769435288525,0.73385018,123.06,123.01,10.76198187]
[1769435289722,7.3199,123.07,123.02,3.43868187]
[1769435289923,9.04786652,123.07,123.02,3.43868187]
[1769435290528,7.3204,123.06,123.02,3.43868187]
[1769435290926,9.7822167,123.06,123.0,3.43868187]
[1769435292731,7.321,123.05,123.0,3.43868187]
[1769435298834,0.73385018,123.06,123.0,10.76248187]
[1769435298835,8.05435018,123.06,123.0,10.76248187]
[1769435299034,8.05435018,123.06,123.0,12.49044839]
[1769435300742,8.05435018,123.06,123.01,3.44943418]
[1769435301234,8.05435018,123.06,123.01,5.1774007]
[1769435301441,8.05435018,123.06,123.01,12.5008007]
[1769435301634,0.73385018,123.06,123.01,12.5008007]
[1769435302637,0.73385018,123.06,123.01,10.77283418]
[1769435308153,9.7823167,123.06,123.01,3.44943418]
[1769435308356,0.72632199,123.04,122.99,3.44943418]
[1769435308950,0.72632199,123.04,122.99,10.77343418]
[1769435311861,0.72632199,123.04,123.0,3.44943418]
[1769435312549,9.04836652,123.06,123.01,3.44943418]
[1769435312952,7.3204,123.06,123.02,3.44943418]
[1769435317652,9.77468851,123.06,123.0,10.77323418]
[1769435317846,0.72632199,123.05,123.0,10.77323418]
[1769435319253,0.72632199,123.05,123.01,3.44943418]
[1769435323163,0.72632199,123.05,122.99,9.05256652]
[1769435323164,8.04732199,123.05,122.99,9.05256652]
[1769435323465,8.04732199,123.05,122.99,12.5020007]
[1769435323965,8.04732199,123.05,123.0,3.44943418]
[1769435332675,8.04732199,123.05,123.0,10.77333418]
[1769435339785,8.05154453,123.04,122.99,1.72796652]
[1769435339984,8.05154453,123.04,122.99,5.09411362]
[1769435340283,8.05154453,123.04,122.99,3.3661471]
[1769435343091,2.45771105,123.02,122.97,3.3661471]
[1769435343495,0.72974453,123.02,122.97,3.3661471]
[1769435343885,8.05304453,123.02,122.97,3.3661471]
[1769435344189,0.72974453,123.02,122.97,3.3661471]
[1769435344389,0.72974453,123.02,122.96,3.3661471]
[1769435345290,0.72974453,123.0,122.94,10.6936471]
[1769435345495,2.45771105,122.98,122.92,3.3661471]
[1769435345690,2.45771105,122.97,122.92,3.3661471]
[1769435347812,0.72974453,122.97,122.92,3.3661471]
[1769435348087,2.45771105,122.97,122.92,3.3661471]
[1769435348795,0.72974453,122.97,122.92,3.3661471]
[1769435356904,113.9225,123.01,122.93,3.3661471]
[1769435356905,2.46033198,122.99,122.93,3.3661471]
[1769435357305,2.46033198,123.01,122.96,3.3661471]
[1769435357602,0.72974453,123.01,122.96,3.3661471]
[1769435358211,8.05324453,123.01,122.96,3.3661471]
[1769435358902,2.45799289,123.0,122.93,10.57686064]
[1769435359211,2.45799289,122.99,122.93,10.57686064]
[1769435359403,9.05578745,122.98,122.93,3.24926064]
[1769435359607,9.78319289,122.98,122.93,3.24926064]
[1769435360009,0.72740544,122.98,122.93,3.24926064]
[1769435362321,9.05518745,122.99,122.93,3.24926064]
[1769435363707,7.3246,122.99,122.93,3.24926064]
[1769435364510,2.45799289,123.0,122.94,3.24926064]
[1769435364808,0.72740544,123.0,122.95,3.24926064]
[1769435367608,0.72740544,122.99,122.92,10.57746064]
[1769435367815,2.45799289,122.99,122.92,10.57746064]
[1769435368510,2.45799289,122.98,122.92,10.57746064]
[1769435369107,2.45799289,122.98,122.93,3.24926064]
[1769435369606,9.78329289,122.98,122.93,3.24926064]
[1769435370410,8.05270544,122.98,122.93,3.24926064]
[1769435371615,7.3258,122.97,122.93,3.24926064]
[1769435373502,7.3264,122.96,122.93,3.24926064]
[1769435373702,7.3264,122.96,122.91,3.24926064]
[1769435376312,7.3271,122.95,122.91,3.24926064]
[1769435378417,0.72740544,122.95,122.9,3.24926064]
[1769435378615,0.72740544,122.95,122.9,4.97984809]
[1769435379921,8.05440544,122.95,122.9,12.30974809]
[1769435382720,8.05440544,122.95,122.9,10.57916064]
[1769435384418,8.05440544,122.95,122.9,3.24926064]
[1769435386023,8.05440544,122.95,122.9,10.57906064]
[1769435386718,0.72740544,122.95,122.9,12.30964809]
[1769435386914,7.3268,122.96,122.91,3.24926064]
[1769435391629,8.05853856,122.96,122.91,3.24926064]
[1769435397831,0.73173856,122.95,122.89,5.1188899]
[1769435398029,2.46232601,122.95,122.89,3.38830245]
[1769435398928,7.3277,122.94,122.9,3.38830245]
[1769435400734,0.73173856,122.97,122.9,3.38830245]
[1769435400933,0.73173856,122.96,122.9,3.38830245]
[1769435401238,0.73173856,122.96,122.91,5.1188899]
[1769435402735,0.73173856,122.96,122.91,3.38830245]
[1769435402935,8.05813856,122.96,122.91,3.38830245]
[1769435403443,8.05813856,122.96,122.91,10.71760245]
[1769435404445,8.05813856,122.96,122.91,12.4481899]
[1769435404843,7.3258,122.97,122.92,3.38830245]
[1769435408746,8.05753856,122.97,122.92,3.38830245]
[1769435409651,0.73173856,122.96,122.9,3.38830245]
[1769435409948,0.73173856,122.96,122.91,3.38830245]
[1769435411046,0.73173856,122.96,122.91,10.71750245]
[1769435413648,0.73173856,122.95,122.9,3.38830245]
[1769435414454,8.05873856,122.95,122.9,3.38830245]
[1769435414653,8.05873856,122.95,122.9,10.71820245]
[1769435416046,0.73173856,122.97,122.9,3.38830245]
[1769435416250,0.73173856,122.97,122.92,3.38830245]
[1769435416854,8.05753856,122.97,122.92,3.38830245]
[1769435417954,8.05753856,122.97,122.92,10.71690245]
[1769435419551,7.3253,122.98,122.93,3.50212966]
[1769435421150,325.51377903,122.99,122.94,5.23304271]
[1769435423062,324.78,122.99,122.95,5.23304271]
[1769435424161,7.3242,123.0,122.95,5.23304271]
[1769435426164,7.3242,123.0,122.95,3.50212966]
[1769435428159,8.05797903,123.0,122.95,3.50212966]
[1769435432667,0.73377903,123.0,122.96,3.50212966]
[1769435433164,7.3234,123.01,122.96,3.50212966]
[1769435433566,2.46469208,123.02,122.97,5.23304271]
[1769435433567,8.05667903,123.02,122.97,5.23304271]
[1769435434359,0.73377903,123.02,122.97,12.55874271]
[1769435434565,7.3223,123.03,122.98,5.23304271]
[1769435434770,7.3223,123.03,122.98,3.50212966]
[1769435435769,8.05607903,123.03,122.98,3.50212966]
[1769435440772,0.73377903,123.03,122.98,10.82682966]
[1769435441273,0.73377903,123.03,122.98,12.55774271]
[1769435441675,8.05597903,123.03,122.98,12.55774271]
[1769435441875,0.73377903,123.03,122.98,12.55774271]
[1769435442178,0.73377903,123.03,122.98,10.82682966]
[1769435449783,0.72744983,123.02,122.96,12.35781005]
[1769435449976,2.45836288,123.01,122.96,3.300997]
[1769435450984,0.72744983,123.01,122.96,10.627297]
[1769435454889,7.3228,123.02,122.97,3.300997]
[1769435455487,8.05024983,123.02,122.97,3.300997]
[1769435456389,438.5458,123.05,122.98,3.300997]
[1769435456390,9.78046288,123.04,122.98,3.300997]
[1769435456586,8.04954983,123.04,122.98,3.300997]
[1769435457889,8.04954983,123.04,122.98,10.626097]
[1769435459385,9.78046288,123.04,122.98,10.626097]
[1769435464395,2.45836288,123.03,122.98,10.626097]
[1769435465695,0.72744983,123.03,122.99,3.300997]
[1769435472398,9.78046288,123.04,122.99,3.300997]
[1769435472999,8.04954983,123.04,122.99,3.300997]
[1769435477605,332.64844983,123.06,123.0,5.02968888]
[1769435477800,332.64844983,123.06,123.01,3.300997]
[1769435478301,7.321,123.05,123.01,3.300997]
[1769435478604,8.04829381,123.05,123.01,3.300997]
[1769435485417,9.77698569,123.05,122.99,10.86460861]
[1769435485708,8.04829381,123.05,122.99,10.86460861]
[1769435486110,8.04829381,123.05,123.0,3.54000861]
[1769435496024,7.3218,123.04,123.0,3.54000861]
[1769435497722,0.72729381,123.02,122.97,3.54000861]
[1769435499123,7.3235,123.01,122.97,3.54000861]
[1769435507326,8.05079381,123.01,122.96,7.3259]
[1769435507631,8.05079381,123.01,122.96,10.86590861]
[1769435516839,8.05079381,123.01,122.96,12.59460049]
[1769435521451,0.72782305,122.99,122.94,10.74235996]
[1769435524947,7.3241,123.0,122.95,3.41525996]
[1769435525143,7.3241,123.0,122.95,5.14395184]
[1769435526340,7.3241,123.0,122.95,3.41525996]
[1769435526541,8.05192305,123.0,122.95,3.41525996]
[1769435526936,8.05242305,122.99,122.93,10.74325996]
[1769435527144,0.72782305,122.98,122.93,3.41525996]
[1769435529650,8.05312305,122.98,122.93,3.41525996]
[1769435532253,0.72782305,123.01,122.95,3.41525996]
[1769435532446,0.72782305,123.01,122.95,5.14395184]
[1769435533151,0.72782305,123.01,122.95,3.41525996]
[1769435533951,7.324,123.0,122.95,3.41525996]
[1769435537654,8.05182305,123.0,122.95,3.41525996]
[1769435539450,0.72782305,123.0,122.95,10.74205996]
[1769435541960,8.05182305,123.0,122.95,10.74205996]
[1769435545352,1.72959229,123.01,122.96,3.41940783]
[1769435545553,1.72959229,123.01,122.96,10.74560783]
[1769435546450,2.45527897,123.01,122.96,10.74560783]
[1769435547861,9.15200924,123.01,122.96,10.74560783]
[1769435548455,2.45527897,123.01,122.96,10.74560783]
[1769435549058,2.45527897,123.01,122.96,3.41940783]
[1769435549268,16.47603285,123.01,122.96,3.41940783]
[1769435549564,9.77877897,123.01,122.96,3.41940783]
[1769435550951,8.04978668,123.0,122.96,3.41940783]
[1769435551163,324.66,123.02,122.95,3.41940783]
[1769435551470,0.72568668,123.04,122.93,113.9914]
[1769435551471,0.72568668,123.04,122.99,3.41940783]
[1769435551659,1.72959229,123.03,122.99,3.41940783]
[1769435552261,0.72568668,123.02,122.96,3.41940783]
[1769435552969,0.72568668,123.02,122.97,3.41940783]
[1769435554169,1.72959229,123.03,122.98,3.41940783]
[1769435554464,2.45527897,123.04,122.98,3.41940783]
[1769435554661,9.15210432,123.04,122.98,3.41940783]
[1769435555572,16.47370432,123.04,122.98,3.41940783]
[1769435555763,9.77687897,123.04,122.98,3.41940783]
[1769435556568,8.04728668,123.04,122.99,3.41940783]
[1769435556763,0.72568668,123.04,122.99,3.41940783]
[1769435560876,325.38568668,123.06,122.99,5.14900012]
[1769435561167,325.38568668,123.06,123.0,3.41940783]
[1769435561975,332.70618668,123.06,123.01,3.41940783]
[1769435570276,0.72459837,123.05,123.0,7.3239]
[1769435571675,0.72459837,123.05,123.0,10.87889341]
[1769435572074,2.45419066,123.01,122.96,3.55499341]
[1769435572374,0.72459837,123.01,122.96,3.55499341]
[1769435572980,9.77699066,123.03,122.97,3.55499341]
[1769435575179,0.72459837,123.01,122.97,3.55499341]
[1769435575879,7.3229,123.02,122.97,3.55499341]
[1769435576079,9.05249229,123.02,122.97,3.55499341]
[1769435576676,9.77709066,123.02,122.97,3.55499341]
[1769435577382,1.72959229,123.01,122.97,3.55499341]
[1769435579180,9.77709066,123.02,122.97,3.55499341]
[1769435579481,0.72459837,123.02,122.97,10.88059341]
[1769435581183,9.77609066,123.04,122.98,3.55499341]
[1769435581493,9.77609066,123.04,122.99,3.55499341]
[1769435584583,2.45419066,123.03,122.98,7.325]
[1769435585584,1.72959229,123.02,122.98,7.325]
[1769435585790,1.72959229,123.03,122.99,3.55499341]
[1769435586292,0.72459837,123.04,122.99,3.55499341]
[1769435586493,2.45419066,123.04,122.99,3.55499341]
[1769435587694,2.45419066,123.04,122.99,10.87939341]
[1769435588897,2.45419066,123.04,123.0,3.55499341]
[1769435589793,1.72959229,123.05,123.01,3.55499341]
[1769435589988,6.69431561,123.07,123.01,3.55499341]
[1769435590197,1.72959229,123.08,123.02,3.55499341]
[1769435590797,9.14829447,123.09,123.03,3.55499341]
[1769435591300,1.72959229,123.08,123.03,3.55499341]
[1769435591510,2.45419066,123.13,123.05,3.55499341]
[1769435591796,1.72959229,123.12,123.06,3.55499341]
[1769435591998,4.18378295,123.13,123.06,3.55499341]
[1769435592195,4.18378295,123.13,123.07,3.55499341]
[1769435594098,2.45419066,123.13,123.07,3.55499341]
[1769435594298,4.18378295,123.13,123.07,3.55499341]
[1769435594500,2.45419066,123.13,123.07,3.55499341]
[1769435596695,4.18038499,123.13,123.07,3.55499341]
[1769435597401,2.45419066,123.13,123.07,3.55499341]
[1769435597593,2.45419066,123.15,123.09,3.55499341]
[1769435597798,4.18038499,123.15,123.09,3.55499341]
[1769435598198,326.92992482,123.16,123.09,3.55499341]
[1769435598396,328.65611915,123.16,123.1,3.28046879]
[1769435598596,326.92992482,123.16,123.1,3.28046879]
[1769435600199,334.24452482,123.16,123.1,3.28046879]
[1769435600404,2.44865249,123.15,123.08,3.26251993]
[1769435601203,1.72619433,123.12,123.08,3.26251993]
[1769435602003,9.04319433,123.12,123.06,3.26251993]
[1769435602398,7.317,123.12,123.06,3.26251993]
[1769435602601,7.317,123.12,123.06,4.98871426]
[1769435602799,7.316,123.14,123.08,3.26251993]
[1769435603003,4.17484682,123.15,123.09,3.26251993]
[1769435604008,11.48994682,123.15,123.09,3.26251993]
[1769435605506,11.48994682,123.15,123.09,7.3185]
[1769435605706,2.44865249,123.15,123.1,3.26251993]
[1769435606307,2.44865249,123.15,123.1,10.58041993]
[1769435606511,326.20619433,123.16,123.11,3.26251993]
[1769435606707,324.48,123.16,123.11,3.26251993]
[1769435606908,324.48,123.16,123.11,10.57971993]
[1769435607410,324.48,123.16,123.11,3.26251993]
[1769435607612,328.65484682,123.16,123.11,3.26251993]
[1769435607812,1.72619433,123.15,123.11,3.26251993]
[1769435610507,1.72619433,123.19,123.12,3.26251993]
[1769435611110,4.17484682,123.19,123.12,3.26251993]
[1769435611711,1.72619433,123.18,123.12,3.26251993]
[1769435611911,1.72619433,123.18,123.12,10.57931993]
[1769435612213,2.44865249,123.19,123.13,3.26251993]
[1769435612413,4.17484682,123.19,123.13,3.26251993]
[1769435613715,1.72619433,123.18,123.13,3.26251993]
[1769435614015,1.72619433,123.18,123.13,10.57871993]
[1769435614211,9.76135249,123.19,123.13,10.57871993]
[1769435614514,11.48754682,123.19,123.14,3.26251993]
[1769435616216,85.86679414,123.2,123.15,3.26251993]
[1769435617109,1.72619433,123.19,123.15,3.26251993]
[1769435617718,84.14059981,123.2,123.16,3.26251993]
[1769435618715,84.14059981,123.2,123.16,10.57661993]
[1769435619317,85.86679414,123.2,123.16,10.57661993]
[1769435620818,85.86679414,123.2,123.16,3.26251993]
[1769435621319,84.14059981,123.2,123.17,3.26251993]
[1769435623418,1.72619433,123.19,123.16,7.3139]
[1769435628518,89.41459319,123.2,123.15,3.26251993]
[1769435631625,89.41459319,123.2,123.15,10.57751993]
[1769435635329,3.54779905,123.19,123.13,10.78045196]
[1769435635525,1.72619433,123.18,123.13,10.78045196]
[1769435636125,1.72619433,123.17,123.13,10.78045196]
[1769435640333,12.58729338,123.18,123.13,10.78045196]
[1769435645432,3.54779905,123.17,123.12,7.3168]
[1769435645631,5.27399338,123.17,123.12,7.3168]
[1769435646033,5.27399338,123.17,123.12,10.78155196]
[1769435647739,5.27399338,123.16,123.11,7.3174]
[1769435647939,1.72619433,123.15,123.11,7.3174]
[1769435651144,5.27399338,123.15,123.1,195.15532432]
[1769435651534,5.27399338,123.14,123.1,3.46475196]
[1769435651739,5.27399338,123.13,123.08,3.46475196]
[1769435651944,1.72619433,123.12,123.08,3.46475196]
[1769435652647,5.27399338,123.13,123.08,3.46475196]
[1769435655446,3.54779905,123.13,123.08,3.46475196]
[1769435661557,3.54779905,123.13,123.07,10.73932521]
[1769435661752,3.22898971,123.12,123.07,3.41952521]
[1769435663057,10.54608971,123.12,123.07,3.41952521]
[1769435668852,10.54608971,123.12,123.07,10.73922521]
[1769435669660,10.54508971,123.14,123.08,10.73852521]
[1769435677462,12.27123994,123.14,123.08,10.73852521]
[1769435677658,3.22898971,123.13,123.08,10.73852521]
[1769435687489,3.22898971,123.13,123.09,7.3186]
[1769435688279,9.04225023,123.14,123.09,10.73812521]
[1769435688479,12.27123994,123.14,123.09,10.73812521]
[1769435688782,3.44875763,123.13,123.08,10.69181504]
[1769435691285,10.19865984,123.13,123.08,10.69181504]
[1769435691487,3.44875763,123.13,123.08,10.69181504]
[1769435691679,10.19865984,123.13,123.08,10.69181504]
[1769435692384,3.44875763,123.13,123.08,10.69181504]
[1769435692579,3.44875763,123.13,123.09,3.37271504]
[1769435694283,3.44875763,123.15,123.1,5.09886527]
[1769435694583,6.75522483,123.15,123.11,3.37271504]
[1769435695187,324.3,123.16,123.11,3.37271504]
[1769435695984,324.3,123.16,123.11,10.68961504]
[1769435696183,327.74875763,123.16,123.11,10.68961504]
[1769435696591,11.83662529,123.15,123.09,10.69081504]
[1769435697890,7.3157,123.14,123.09,10.69081504]
[1769435700191,12.49000786,123.15,123.09,10.69081504]
[1769435705390,12.49000786,123.15,123.1,3.37271504]
[1769435706499,331.6145,123.16,123.11,3.37271504]
[1769435706997,327.74875763,123.16,123.11,3.37271504]
[1769435707292,10.10343994,123.15,123.08,1.72615023]
[1769435709096,17.41853994,123.15,123.09,7.3181]
[1769435709297,10.76385763,123.15,123.09,10.69081504]
[1769435710496,3.44875763,123.15,123.1,10.69061504]
[1769435710991,3.44875763,123.17,123.12,7.3167]
[1769435711198,10.10367447,123.17,123.12,12.41556527]
[1769435711694,3.44875763,123.17,123.12,12.41556527]
[1769435711998,10.10276097,123.17,123.12,12.41556527]
[1769435712200,3.44875763,123.17,123.12,12.41556527]
[1769435713193,3.44875763,123.17,123.12,12.41566527]
[1769435713594,3.44875763,123.17,123.12,10.68951504]
[1769435717791,9.03955023,123.18,123.13,3.37271504]
[1769435717996,7.3134,123.18,123.13,10.68881504]
[1769435719507,12.48760786,123.19,123.13,10.68881504]
[1769435719803,3.44875763,123.19,123.14,3.2371496]
[1769435721100,3.44875763,123.19,123.15,7.315]
[1769435721598,415.69279981,123.2,123.15,10.5521496]
[1769435721808,417.41744115,123.2,123.15,10.5521496]
[1769435721994,420.80934296,123.2,123.15,10.5521496]
[1769435722405,419.08470162,123.2,123.15,10.5521496]
[1769435722703,420.80934296,123.2,123.15,10.5521496]
[1769435724401,420.80934296,123.2,123.15,3.2371496]
[1769435724607,5.11654315,123.18,123.13,3.2371496]
[1769435725907,5.11654315,123.18,123.13,10.5532496]
[1769435727809,3.39190181,123.18,123.13,10.5532496]
[1769435730003,419.08470162,123.2,123.14,10.5522496]
[1769435730209,96.56934296,123.2,123.14,10.5522496]
[1769435734207,3.39190181,123.18,123.12,3.2371496]
[1769435734400,85.86524115,123.2,123.09,3.2371496]
[1769435734401,5.11654315,123.16,123.09,3.2371496]
[1769435734906,12.43104315,123.16,123.09,3.2371496]
[1769435735909,12.43104315,123.16,123.1,10.5550496]
[1769435738609,3.39190181,123.16,123.11,10.5545496]
[1769435741818,3.39190181,123.16,123.12,7.3164]
[1769435742511,1.72464134,123.17,123.12,10.5535496]
[1769435742912,5.11654315,123.17,123.12,10.5535496]
[1769435743112,3.39190181,123.17,123.12,10.5535496]
[1769435750524,10.70590181,123.17,123.12,3.2371496]
[1769435755727,3.25450961,123.15,123.11,7.3174]
[1769435756623,3.25450961,123.15,123.11,10.75180439]
[1769435757025,9.88278192,123.17,123.11,12.47644573]
[1769435757220,3.25450961,123.17,123.11,12.47644573]
[1769435757625,9.88274194,123.17,123.11,12.47644573]
[1769435757826,3.25450961,123.17,123.11,12.47644573]
[1769435758123,10.56840961,123.17,123.12,3.43440439]
[1769435763829,3.25450961,123.17,123.13,3.43440439]
[1769435764328,10.11062731,123.17,123.13,3.43440439]
[1769435765828,3.25450961,123.19,123.14,5.15904573]
[1769435766029,10.11015918,123.19,123.14,5.15904573]
[1769435766229,6.85564957,123.18,123.14,5.15904573]
[1769435766932,6.85564957,123.18,123.14,12.47414573]
[1769435767628,4.957e-05,123.19,123.15,12.47384573]
[1769435768228,87.39510942,123.2,123.15,12.47384573]
[1769435768429,87.39510942,123.2,123.15,10.74920439]
[1769435781640,84.14059981,123.2,123.16,3.22204985]
[1769435782137,87.50810395,123.2,123.16,3.22204985]
[1769435782439,87.50810395,123.2,123.15,9.03913543]
[1769435782634,87.50810395,123.2,123.15,7.3148]
[1769435784945,3.36750414,123.19,123.14,7.3156]
[1769435785245,1.72433543,123.18,123.12,3.22204985]
[1769435785443,3.36750414,123.17,123.12,3.22204985]
[1769435785742,3.36750414,123.17,123.12,10.53834985]
[1769435787245,3.36750414,123.17,123.13,7.3162]
[1769435792952,3.36750414,123.17,123.14,7.3156]
[1769435793955,3.36750414,123.19,123.14,10.53764985]
[1769435794850,3.36750414,123.19,123.15,3.22204985]
[1769435795055,3.36750414,123.19,123.15,10.53704985]
[1769435800054,1.72433543,123.18,123.14,7.3155]
[1769435800364,5.09183957,123.15,123.1,3.22204985]
[1769435802159,5.09183957,123.15,123.11,7.3173]
[1769435803257,3.36750414,123.15,123.11,7.3173]
[1769435808364,3.36750414,123.15,123.12,7.3168]
[1769435811771,3.37663139,123.17,123.12,10.66694033]
[1769435812367,13.1095422,123.19,123.13,10.66634033]
[1769435812870,3.37663139,123.18,123.13,10.66634033]
[1769435815770,5.7967422,123.18,123.13,10.66634033]
[1769435819475,13.1102422,123.18,123.13,10.66634033]
[1769435819676,13.1102422,123.18,123.13,3.35014033]
[1769435822073,3.37663139,123.18,123.13,10.66624033]
[1769435822279,10.68933139,123.19,123.14,3.35014033]
[1769435822480,13.1094422,123.19,123.14,3.35014033]
[1769435822872,10.68933139,123.19,123.14,3.35014033]
[1769435825178,3.37663139,123.18,123.14,3.35014033]
[1769435825575,3.37663139,123.18,123.13,9.73621081]
[1769435825770,3.37663139,123.18,123.13,13.08635114]
[1769435826583,3.37663139,123.18,123.13,10.66624033]
[1769435827279,3.37663139,123.17,123.12,10.66694033]
[1769435833889,3.37663139,123.17,123.12,13.08705114]
[1769435835990,10.68933139,123.19,123.14,3.35014033]
[1769435841595,3.37663139,123.19,123.14,10.79970704]
[1769435842194,3.37663139,123.19,123.15,3.48410704]
[1769435842600,91.45279981,123.2,123.15,10.79910704]
[1769435843210,84.14059981,123.2,123.16,3.48410704]
[1769435845102,84.14059981,123.2,123.12,128.86872259]
[1769435845103,61.23581173,123.2,123.17,5.90296298]
[1769435845304,61.23581173,123.2,123.17,3.48410704]
[1769435845511,64.68466737,123.2,123.15,3.48410704]
[1769435845707,3.44885564,123.19,123.14,9.73445594]
[1769435845903,3.44885564,123.19,123.14,13.21856298]
[1769435846110,61.23581173,123.2,123.15,3.48410704]
[1769435846306,61.23581173,123.2,123.15,10.79890704]
[1769435847709,61.23581173,123.2,123.15,13.21776298]
[1769435847904,64.68466737,123.2,123.15,13.21776298]
[1769435848104,64.68466737,123.2,123.15,10.79890704]
[1769435849110,3.44885564,123.19,123.15,3.48410704]
[1769435850209,61.23581173,123.2,123.15,10.79910704]
[1769435850512,64.68466737,123.2,123.15,10.79910704]
[1769435850911,64.68466737,123.2,123.15,13.21796298]
[1769435853614,61.23581173,123.2,123.16,3.48410704]
[1769435853813,61.23581173,123.2,123.16,5.90296298]